[Event "Titled Tuesday Blitz April 26 Early 2022"]
[White "Pranav, V"]
[Black "Harikrishna, Pentala"]
[WhiteFideId "25060783"]
[BlackFideId "5007003"]
[WhiteElo "2349"]
[BlackElo "2574"]
[Result "1-0"]
[Round "07"]
[TimeControl "180+1"]
[Date "2022.04.26"]
[WhiteClock "0:00:32"]
[BlackClock "0:00:08"]

1. Nf3 {[%clk 0:03:00]}  d5 {[%clk 0:02:59]} 2. g3 {[%clk 0:03:01]}  g6 {[%clk 0:02:59]} 3. Bg2 {[%clk 0:03:01]}  Bg7 {[%clk 0:03:00]} 4. O-O {[%clk 0:03:01]}  e5 {[%clk 0:02:59]} 5. d3 {[%clk 0:03:02]}  Ne7 {[%clk 0:02:57]} 6. e4 {[%clk 0:03:02]}  O-O {[%clk 0:02:48]} 7. Nbd2 {[%clk 0:03:01]}  Nbc6 {[%clk 0:02:46]} 8. exd5 {[%clk 0:03:01]}  Nxd5 {[%clk 0:02:46]} 9. Re1 {[%clk 0:03:01]}  Re8 {[%clk 0:02:42]} 10. Nc4 {[%clk 0:03:01]}  Nb6 {[%clk 0:02:29]} 11. Ne3 {[%clk 0:02:54]}  h6 {[%clk 0:02:27]} 12. a4 {[%clk 0:02:52]}  a5 {[%clk 0:02:27]} 13. Nd2 {[%clk 0:02:51]}  Be6 {[%clk 0:02:25]} 14. Ne4 {[%clk 0:02:50]}  Nd7 {[%clk 0:02:16]} 15. h4 {[%clk 0:02:46]}  f5 {[%clk 0:02:04]} 16. Nc3 {[%clk 0:02:30]}  Nf6 {[%clk 0:02:04]} 17. Nb5 {[%clk 0:02:19]}  Qd7 {[%clk 0:02:04]} 18. Nc4 {[%clk 0:02:01]}  Bd5 {[%clk 0:01:51]} 19. Bxd5+ {[%clk 0:01:58]}  Nxd5 {[%clk 0:01:52]} 20. c3 {[%clk 0:01:58]}  Rad8 {[%clk 0:01:49]} 21. Bd2 {[%clk 0:01:57]}  Kh7 {[%clk 0:01:28]} 22. Qf3 {[%clk 0:01:55]}  Nf6 {[%clk 0:01:22]} 23. Rad1 {[%clk 0:01:40]}  Qf7 {[%clk 0:01:22]} 24. b3 {[%clk 0:01:34]}  Rd5 {[%clk 0:01:17]} 25. d4 {[%clk 0:01:18]}  exd4 {[%clk 0:00:54]} 26. Rxe8 {[%clk 0:01:12]}  Nxe8 {[%clk 0:00:54]} 27. Re1 {[%clk 0:01:11]}  Nf6 {[%clk 0:00:44]} 28. cxd4 {[%clk 0:01:10]}  Nxd4 {[%clk 0:00:40]} 29. Nxd4 {[%clk 0:01:09]}  Rxd4 {[%clk 0:00:41]} 30. Qxb7 {[%clk 0:01:08]}  Ne4 {[%clk 0:00:39]} 31. Be3 {[%clk 0:01:08]}  Rd3 {[%clk 0:00:37]} 32. Qb5 {[%clk 0:00:47]}  g5 {[%clk 0:00:29]} 33. hxg5 {[%clk 0:00:40]}  hxg5 {[%clk 0:00:30]} 34. Ne5 {[%clk 0:00:39]}  Bxe5 {[%clk 0:00:23]} 35. Qxd3 {[%clk 0:00:39]}  Nd6 {[%clk 0:00:17]} 36. Bxg5 {[%clk 0:00:39]}  Qg7 {[%clk 0:00:13]} 37. Qf3 {[%clk 0:00:35]}  Kg8 {[%clk 0:00:12]} 38. Qd5+ {[%clk 0:00:34]}  Nf7 {[%clk 0:00:12]} 39. Bf4 {[%clk 0:00:31]}  Bxf4 {[%clk 0:00:11]} 40. Re8+ {[%clk 0:00:31]}  Kh7 {[%clk 0:00:12]} 41. Qxf5+ {[%clk 0:00:32]}  Qg6 {[%clk 0:00:09]} 42. Qxg6+ {[%clk 0:00:31]}  Kxg6 {[%clk 0:00:08]} 43. gxf4 {[%clk 0:00:32]} 1-0


[Site "https://www.chess.com"]

[Event "Titled Tuesday Blitz April 26 Early 2022"]
[White "Rottenwohrer Suarez, Juan"]
[Black "Kucuksari, Kaan"]
[WhiteFideId "32068182"]
[BlackFideId "6380166"]
[WhiteElo "2158"]
[BlackElo "2305"]
[Result "0-1"]
[Round "07"]
[TimeControl "180+1"]
[Date "2022.04.26"]
[WhiteClock "0:00:01"]
[BlackClock "0:00:14"]

1. Nf3 {[%clk 0:03:00]}  Nf6 {[%clk 0:02:59]} 2. g3 {[%clk 0:03:01]}  d5 {[%clk 0:02:54]} 3. Bg2 {[%clk 0:03:01]}  e6 {[%clk 0:02:53]} 4. O-O {[%clk 0:03:02]}  Bd6 {[%clk 0:02:51]} 5. d3 {[%clk 0:03:01]}  O-O {[%clk 0:02:51]} 6. Nc3 {[%clk 0:03:01]}  c6 {[%clk 0:02:50]} 7. e4 {[%clk 0:03:01]}  Nbd7 {[%clk 0:02:49]} 8. Qe2 {[%clk 0:02:56]}  e5 {[%clk 0:02:47]} 9. exd5 {[%clk 0:02:37]}  cxd5 {[%clk 0:02:48]} 10. Bg5 {[%clk 0:02:37]}  h6 {[%clk 0:02:48]} 11. Bxf6 {[%clk 0:02:32]}  Nxf6 {[%clk 0:02:49]} 12. Nxe5 {[%clk 0:02:22]}  d4 {[%clk 0:02:49]} 13. Nb5 {[%clk 0:02:05]}  Bb8 {[%clk 0:02:39]} 14. f4 {[%clk 0:02:02]}  Qb6 {[%clk 0:02:33]} 15. a4 {[%clk 0:01:55]}  a6 {[%clk 0:02:32]} 16. Nc4 {[%clk 0:01:55]}  Qc5 {[%clk 0:02:20]} 17. b4 {[%clk 0:01:29]}  Qxb4 {[%clk 0:02:18]} 18. Nb6 {[%clk 0:01:29]}  Bg4 {[%clk 0:02:10]} 19. Qe1 {[%clk 0:01:16]}  Qc5 {[%clk 0:01:51]} 20. Nxa8 {[%clk 0:01:14]}  axb5 {[%clk 0:01:51]} 21. axb5 {[%clk 0:01:15]}  Re8 {[%clk 0:01:45]} 22. Qa5 {[%clk 0:00:57]}  Re2 {[%clk 0:01:22]} 23. Rae1 {[%clk 0:00:58]}  Rxg2+ {[%clk 0:00:58]} 24. Kxg2 {[%clk 0:00:57]}  Qd5+ {[%clk 0:00:59]} 25. Kg1 {[%clk 0:00:54]}  Bh3 {[%clk 0:00:44]} 26. Rf2 {[%clk 0:00:54]}  Bxf4 {[%clk 0:00:20]} 27. gxf4 {[%clk 0:00:41]}  Ng4 {[%clk 0:00:20]} 28. Re8+ {[%clk 0:00:36]}  Kh7 {[%clk 0:00:20]} 29. Qd8 {[%clk 0:00:37]}  Qxb5 {[%clk 0:00:16]} 30. Rh8+ {[%clk 0:00:29]}  Kg6 {[%clk 0:00:16]} 31. f5+ {[%clk 0:00:30]}  Kh5 {[%clk 0:00:16]} 32. Rf1 {[%clk 0:00:04]}  Qe5 {[%clk 0:00:17]} 33. Rxh6+ {[%clk 0:00:01]}  gxh6 {[%clk 0:00:14]} 0-1


[Site "https://www.chess.com"]

[Event "Titled Tuesday Blitz April 26 Early 2022"]
[White "Samaganova, Aleksandra"]
[Black "Palacio,Igor Da Paz"]
[WhiteFideId "13800221"]
[BlackFideId "2121140"]
[WhiteElo "1859"]
[BlackElo "2144"]
[Result "0-1"]
[Round "07"]
[TimeControl "180+1"]
[Date "2022.04.26"]
[WhiteClock "0:02:12"]
[BlackClock "0:01:36"]

1. c4 {[%clk 0:03:00]}  Nf6 {[%clk 0:02:56]} 2. Nc3 {[%clk 0:03:00]}  g6 {[%clk 0:02:56]} 3. g3 {[%clk 0:02:57]}  Bg7 {[%clk 0:02:55]} 4. Bg2 {[%clk 0:02:57]}  O-O {[%clk 0:02:56]} 5. d4 {[%clk 0:02:56]}  d6 {[%clk 0:02:56]} 6. e4 {[%clk 0:02:56]}  c5 {[%clk 0:02:52]} 7. Nge2 {[%clk 0:02:55]}  Nc6 {[%clk 0:02:47]} 8. d5 {[%clk 0:02:48]}  Ne5 {[%clk 0:02:31]} 9. b3 {[%clk 0:02:44]}  Bg4 {[%clk 0:02:31]} 10. O-O {[%clk 0:02:40]}  Bf3 {[%clk 0:02:23]} 11. Rb1 {[%clk 0:02:37]}  Qd7 {[%clk 0:01:38]} 12. Nf4 {[%clk 0:02:12]}  Bxd1 {[%clk 0:01:36]} 0-1


[Site "https://www.chess.com"]

[Event "Titled Tuesday Blitz April 26 Early 2022"]
[White "Samunenkov, Ihor"]
[Black "Ivic, Velimir"]
[WhiteFideId "14187086"]
[BlackFideId "950122"]
[WhiteElo "2409"]
[BlackElo "2610"]
[Result "1-0"]
[Round "07"]
[TimeControl "180+1"]
[Date "2022.04.26"]
[WhiteClock "0:00:04"]
[BlackClock "0:00:03"]

1. d4 {[%clk 0:03:00]}  Nf6 {[%clk 0:02:52]} 2. c4 {[%clk 0:02:58]}  g6 {[%clk 0:02:52]} 3. Nc3 {[%clk 0:02:56]}  Bg7 {[%clk 0:02:52]} 4. e4 {[%clk 0:02:56]}  d6 {[%clk 0:02:51]} 5. h3 {[%clk 0:02:56]}  Nbd7 {[%clk 0:02:49]} 6. Bg5 {[%clk 0:02:54]}  e5 {[%clk 0:02:45]} 7. d5 {[%clk 0:02:50]}  h6 {[%clk 0:02:45]} 8. Be3 {[%clk 0:02:50]}  h5 {[%clk 0:02:45]} 9. Qd2 {[%clk 0:02:37]}  h4 {[%clk 0:02:44]} 10. Bd3 {[%clk 0:02:33]}  Nh5 {[%clk 0:02:38]} 11. Nge2 {[%clk 0:02:27]}  Nc5 {[%clk 0:02:38]} 12. Bc2 {[%clk 0:02:26]}  a5 {[%clk 0:02:39]} 13. b3 {[%clk 0:02:23]}  f5 {[%clk 0:02:31]} 14. exf5 {[%clk 0:01:54]}  gxf5 {[%clk 0:02:31]} 15. f4 {[%clk 0:01:54]}  exf4 {[%clk 0:02:24]} 16. Bd4 {[%clk 0:01:54]}  Be5 {[%clk 0:02:19]} 17. O-O-O {[%clk 0:01:37]}  O-O {[%clk 0:01:37]} 18. Rhf1 {[%clk 0:01:34]}  Qg5 {[%clk 0:01:25]} 19. Rf2 {[%clk 0:01:16]}  Bd7 {[%clk 0:00:58]} 20. Ng1 {[%clk 0:00:53]}  Ng3 {[%clk 0:00:39]} 21. Nf3 {[%clk 0:00:51]}  Qe7 {[%clk 0:00:40]} 22. Nxe5 {[%clk 0:00:31]}  dxe5 {[%clk 0:00:39]} 23. Re1 {[%clk 0:00:31]}  Nce4 {[%clk 0:00:34]} 24. Nxe4 {[%clk 0:00:30]}  fxe4 {[%clk 0:00:31]} 25. Bxe4 {[%clk 0:00:30]}  exd4 {[%clk 0:00:29]} 26. Bc2 {[%clk 0:00:18]}  Qe3 {[%clk 0:00:14]} 27. Rxe3 {[%clk 0:00:14]}  dxe3 {[%clk 0:00:09]} 28. Qd4 {[%clk 0:00:10]}  exf2 {[%clk 0:00:07]} 29. Qxf2 {[%clk 0:00:11]}  Rae8 {[%clk 0:00:07]} 30. Qf3 {[%clk 0:00:08]}  Re2 {[%clk 0:00:05]} 31. Qc3 {[%clk 0:00:05]}  b6 {[%clk 0:00:04]} 32. d6 {[%clk 0:00:04]}  Rxg2 {[%clk 0:00:04]} 33. Qe5 {[%clk 0:00:03]}  c6 {[%clk 0:00:03]} 34. Qg5+ {[%clk 0:00:03]}  Kf7 {[%clk 0:00:03]} 35. Qe7+ {[%clk 0:00:04]}  Kg8 {[%clk 0:00:03]} 36. Qh7# {[%clk 0:00:04]} 1-0


[Site "https://www.chess.com"]

[Event "Titled Tuesday Blitz April 26 Early 2022"]
[White "Sanchez Alvares, Kelvin Antonio"]
[Black "Nguyen, Hong Anh"]
[WhiteFideId "3906680"]
[BlackFideId "12406732"]
[WhiteElo "2193"]
[BlackElo "2016"]
[Result "0-1"]
[Round "07"]
[TimeControl "180+1"]
[Date "2022.04.26"]
[WhiteClock "0:00:09"]
[BlackClock "0:00:11"]

1. e4 {[%clk 0:02:59]}  c5 {[%clk 0:02:59]} 2. Nf3 {[%clk 0:02:58]}  Nc6 {[%clk 0:02:59]} 3. d4 {[%clk 0:02:58]}  cxd4 {[%clk 0:03:00]} 4. Nxd4 {[%clk 0:02:58]}  g6 {[%clk 0:03:01]} 5. c4 {[%clk 0:02:57]}  Nf6 {[%clk 0:03:01]} 6. Nc3 {[%clk 0:02:56]}  Bg7 {[%clk 0:02:57]} 7. Be3 {[%clk 0:02:52]}  d6 {[%clk 0:02:53]} 8. f3 {[%clk 0:02:44]}  O-O {[%clk 0:02:53]} 9. Qd2 {[%clk 0:02:40]}  Nxd4 {[%clk 0:02:47]} 10. Bxd4 {[%clk 0:02:37]}  Be6 {[%clk 0:02:48]} 11. Be2 {[%clk 0:02:36]}  Qa5 {[%clk 0:02:48]} 12. Nb5 {[%clk 0:02:24]}  Qxd2+ {[%clk 0:02:46]} 13. Kxd2 {[%clk 0:02:24]}  Rfc8 {[%clk 0:02:24]} 14. Nxa7 {[%clk 0:02:15]}  Rd8 {[%clk 0:02:20]} 15. Nb5 {[%clk 0:02:15]}  Rdc8 {[%clk 0:02:17]} 16. b3 {[%clk 0:02:12]}  Bd7 {[%clk 0:02:15]} 17. Na7 {[%clk 0:01:58]}  Nxe4+ {[%clk 0:02:10]} 18. fxe4 {[%clk 0:01:54]}  Bxd4 {[%clk 0:02:09]} 19. Nxc8 {[%clk 0:01:54]}  Bxc8 {[%clk 0:01:59]} 20. a4 {[%clk 0:01:38]}  Bxa1 {[%clk 0:01:57]} 21. Rxa1 {[%clk 0:01:39]}  Bd7 {[%clk 0:01:54]} 22. Kc3 {[%clk 0:01:31]}  Bc6 {[%clk 0:01:53]} 23. Bd3 {[%clk 0:01:31]}  Ra5 {[%clk 0:01:52]} 24. g3 {[%clk 0:01:30]}  Kg7 {[%clk 0:01:45]} 25. Bc2 {[%clk 0:01:25]}  Rh5 {[%clk 0:01:41]} 26. h4 {[%clk 0:01:23]}  Re5 {[%clk 0:01:42]} 27. Kd4 {[%clk 0:01:21]}  g5 {[%clk 0:01:41]} 28. b4 {[%clk 0:01:14]}  Kg6 {[%clk 0:01:29]} 29. b5 {[%clk 0:01:08]}  Bd7 {[%clk 0:01:29]} 30. a5 {[%clk 0:01:08]}  Kh5 {[%clk 0:01:15]} 31. Rf1 {[%clk 0:01:03]}  f6 {[%clk 0:01:12]} 32. hxg5 {[%clk 0:01:01]}  Kxg5 {[%clk 0:01:12]} 33. Ra1 {[%clk 0:00:54]}  Kg4 {[%clk 0:01:11]} 34. Rh1 {[%clk 0:00:53]}  h5 {[%clk 0:00:53]} 35. Bd1+ {[%clk 0:00:52]}  Kxg3 {[%clk 0:00:52]} 36. Rxh5 {[%clk 0:00:51]}  Kf4 {[%clk 0:00:50]} 37. Rh4+ {[%clk 0:00:46]}  Kg3 {[%clk 0:00:49]} 38. Rh8 {[%clk 0:00:45]}  f5 {[%clk 0:00:45]} 39. Bc2 {[%clk 0:00:38]}  f4 {[%clk 0:00:44]} 40. Rd8 {[%clk 0:00:35]}  Bg4 {[%clk 0:00:35]} 41. Bd3 {[%clk 0:00:32]}  f3 {[%clk 0:00:34]} 42. a6 {[%clk 0:00:31]}  bxa6 {[%clk 0:00:33]} 43. b6 {[%clk 0:00:32]}  f2 {[%clk 0:00:22]} 44. b7 {[%clk 0:00:31]}  Ra5 {[%clk 0:00:17]} 45. b8=Q {[%clk 0:00:30]}  Ra3 {[%clk 0:00:17]} 46. Rf8 {[%clk 0:00:24]}  Bf3 {[%clk 0:00:15]} 47. Rxf3+ {[%clk 0:00:19]}  Kxf3 {[%clk 0:00:15]} 48. Qf8+ {[%clk 0:00:19]}  Kg2 {[%clk 0:00:15]} 49. Qg7+ {[%clk 0:00:19]}  Kf3 {[%clk 0:00:15]} 50. Qf7+ {[%clk 0:00:18]}  Kg2 {[%clk 0:00:15]} 51. Qg6+ {[%clk 0:00:18]}  Kh2 {[%clk 0:00:16]} 52. Ke3 {[%clk 0:00:16]}  f1=Q {[%clk 0:00:13]} 53. e5 {[%clk 0:00:09]}  Qh3+ {[%clk 0:00:12]} 54. Kd4 {[%clk 0:00:09]}  dxe5+ {[%clk 0:00:12]} 55. Kc5 {[%clk 0:00:09]}  Qxd3 {[%clk 0:00:11]} 0-1


[Site "https://www.chess.com"]

[Event "Titled Tuesday Blitz April 26 Early 2022"]
[White "Schekachikhin, Maksim"]
[Black "D`Arruda, Ricardo D."]
[WhiteFideId "24177830"]
[BlackFideId "100692"]
[WhiteElo "2230"]
[BlackElo "2415"]
[Result "1-0"]
[Round "07"]
[TimeControl "180+1"]
[Date "2022.04.26"]
[WhiteClock "0:01:19"]
[BlackClock "0:00:51"]

1. d4 {[%clk 0:02:59]}  Nf6 {[%clk 0:02:57]} 2. c4 {[%clk 0:02:56]}  e5 {[%clk 0:02:57]} 3. dxe5 {[%clk 0:02:54]}  Ne4 {[%clk 0:02:57]} 4. Nf3 {[%clk 0:02:45]}  Nc6 {[%clk 0:02:57]} 5. e3 {[%clk 0:02:41]}  d6 {[%clk 0:02:56]} 6. Bd3 {[%clk 0:02:38]}  Nc5 {[%clk 0:02:54]} 7. exd6 {[%clk 0:02:37]}  Qxd6 {[%clk 0:02:55]} 8. Bc2 {[%clk 0:02:36]}  Qxd1+ {[%clk 0:02:46]} 9. Kxd1 {[%clk 0:02:26]}  Be6 {[%clk 0:02:43]} 10. Nbd2 {[%clk 0:02:25]}  O-O-O {[%clk 0:02:39]} 11. Ke2 {[%clk 0:02:21]}  Nb4 {[%clk 0:02:38]} 12. Bb1 {[%clk 0:02:20]}  Be7 {[%clk 0:02:36]} 13. a3 {[%clk 0:02:18]}  Nbd3 {[%clk 0:02:35]} 14. b4 {[%clk 0:02:11]}  Nxc1+ {[%clk 0:02:34]} 15. Rxc1 {[%clk 0:02:09]}  Na4 {[%clk 0:02:30]} 16. Nd4 {[%clk 0:01:42]}  Bf6 {[%clk 0:02:29]} 17. N2f3 {[%clk 0:01:41]}  Bg4 {[%clk 0:02:27]} 18. Bc2 {[%clk 0:01:37]}  Nc3+ {[%clk 0:02:21]} 19. Kd3 {[%clk 0:01:37]}  b6 {[%clk 0:01:41]} 20. b5 {[%clk 0:01:29]}  Ne2 {[%clk 0:00:57]} 21. Kxe2 {[%clk 0:01:26]}  Bxd4 {[%clk 0:00:56]} 22. exd4 {[%clk 0:01:26]}  Rxd4 {[%clk 0:00:57]} 23. Bf5+ {[%clk 0:01:24]}  Kb7 {[%clk 0:00:51]} 24. Bxg4 {[%clk 0:01:23]}  Re8+ {[%clk 0:00:50]} 25. Kf1 {[%clk 0:01:22]}  Rxg4 {[%clk 0:00:51]} 26. c5 {[%clk 0:01:19]} 1-0


[Site "https://www.chess.com"]

[Event "Titled Tuesday Blitz April 26 Early 2022"]
[White "Sihite, Chelsie Monica Ignesias"]
[Black "Piliczewski, Bogusz"]
[WhiteFideId "7101198"]
[BlackFideId "1104144"]
[WhiteElo "2224"]
[BlackElo "1896"]
[Result "1-0"]
[Round "07"]
[TimeControl "180+1"]
[Date "2022.04.26"]
[WhiteClock "0:02:04"]
[BlackClock "0:00:42"]

1. c4 {[%clk 0:02:57]}  c6 {[%clk 0:02:59]} 2. g3 {[%clk 0:02:57]}  d5 {[%clk 0:02:57]} 3. cxd5 {[%clk 0:02:58]}  cxd5 {[%clk 0:02:57]} 4. Nf3 {[%clk 0:02:59]}  Nf6 {[%clk 0:02:56]} 5. Bg2 {[%clk 0:03:00]}  Bf5 {[%clk 0:02:55]} 6. O-O {[%clk 0:03:01]}  Nc6 {[%clk 0:02:55]} 7. d3 {[%clk 0:03:01]}  h6 {[%clk 0:02:53]} 8. Bf4 {[%clk 0:03:01]}  e6 {[%clk 0:02:53]} 9. Nbd2 {[%clk 0:03:01]}  Be7 {[%clk 0:02:53]} 10. Be5 {[%clk 0:03:01]}  Nxe5 {[%clk 0:02:37]} 11. Nxe5 {[%clk 0:03:02]}  O-O {[%clk 0:02:37]} 12. Rc1 {[%clk 0:02:53]}  Rc8 {[%clk 0:02:30]} 13. Qb3 {[%clk 0:02:52]}  Rxc1 {[%clk 0:02:23]} 14. Rxc1 {[%clk 0:02:51]}  Qb8 {[%clk 0:02:24]} 15. d4 {[%clk 0:02:50]}  Rc8 {[%clk 0:02:20]} 16. Rc3 {[%clk 0:02:48]}  Bd6 {[%clk 0:02:13]} 17. f4 {[%clk 0:02:47]}  Rxc3 {[%clk 0:01:56]} 18. bxc3 {[%clk 0:02:46]}  Qc7 {[%clk 0:01:52]} 19. c4 {[%clk 0:02:44]}  Ne4 {[%clk 0:01:43]} 20. Bxe4 {[%clk 0:02:42]}  Bxe4 {[%clk 0:01:40]} 21. Nxe4 {[%clk 0:02:40]}  Bxe5 {[%clk 0:01:35]} 22. fxe5 {[%clk 0:02:36]}  dxe4 {[%clk 0:01:35]} 23. c5 {[%clk 0:02:34]}  Qc6 {[%clk 0:01:31]} 24. Kf2 {[%clk 0:02:33]}  b6 {[%clk 0:01:21]} 25. cxb6 {[%clk 0:02:31]}  axb6 {[%clk 0:01:14]} 26. Ke3 {[%clk 0:02:31]}  f5 {[%clk 0:01:10]} 27. exf6 {[%clk 0:02:31]}  gxf6 {[%clk 0:01:10]} 28. Qb1 {[%clk 0:02:25]}  f5 {[%clk 0:01:09]} 29. Qb3 {[%clk 0:02:23]}  Kf7 {[%clk 0:01:08]} 30. Qb2 {[%clk 0:02:15]}  Ke7 {[%clk 0:01:05]} 31. Qb4+ {[%clk 0:02:14]}  Kf7 {[%clk 0:01:05]} 32. Qa3 {[%clk 0:02:13]}  h5 {[%clk 0:01:01]} 33. Qa7+ {[%clk 0:02:12]}  Kf6 {[%clk 0:01:00]} 34. Kf2 {[%clk 0:02:09]}  Qd6 {[%clk 0:00:58]} 35. Qa4 {[%clk 0:02:08]}  e5 {[%clk 0:00:55]} 36. dxe5+ {[%clk 0:02:07]}  Kxe5 {[%clk 0:00:54]} 37. Qe8+ {[%clk 0:02:05]}  Qe6 {[%clk 0:00:45]} 38. Qxh5 {[%clk 0:02:04]}  Qxa2 {[%clk 0:00:44]} 39. Qh8+ {[%clk 0:02:04]}  Ke6 {[%clk 0:00:42]} 40. Qg8+ {[%clk 0:02:04]} 1-0


[Site "https://www.chess.com"]

[Event "Titled Tuesday Blitz April 26 Early 2022"]
[White "Simonovic, Miroslav"]
[Black "Gatterer, Florian"]
[WhiteFideId "919152"]
[BlackFideId "811688"]
[WhiteElo "2043"]
[BlackElo "2218"]
[Result "0-1"]
[Round "07"]
[TimeControl "180+1"]
[Date "2022.04.26"]
[WhiteClock "0:00:12"]
[BlackClock "0:00:50"]

1. d4 {[%clk 0:02:26]}  Nf6 {[%clk 0:02:59]} 2. Bg5 {[%clk 0:02:25]}  d5 {[%clk 0:02:55]} 3. Bxf6 {[%clk 0:02:24]}  gxf6 {[%clk 0:02:55]} 4. e3 {[%clk 0:02:24]}  c5 {[%clk 0:02:55]} 5. c4 {[%clk 0:02:23]}  cxd4 {[%clk 0:02:55]} 6. Qxd4 {[%clk 0:02:22]}  Qa5+ {[%clk 0:02:40]} 7. Nc3 {[%clk 0:02:17]}  dxc4 {[%clk 0:02:40]} 8. Bxc4 {[%clk 0:02:14]}  Nc6 {[%clk 0:02:39]} 9. Qd5 {[%clk 0:02:04]}  e6 {[%clk 0:02:33]} 10. Qxa5 {[%clk 0:02:03]}  Nxa5 {[%clk 0:02:34]} 11. Bb5+ {[%clk 0:01:57]}  Nc6 {[%clk 0:02:30]} 12. Nge2 {[%clk 0:01:51]}  Bc5 {[%clk 0:02:24]} 13. O-O-O {[%clk 0:01:16]}  Bd7 {[%clk 0:02:06]} 14. Rd2 {[%clk 0:01:10]}  Ke7 {[%clk 0:02:07]} 15. Rhd1 {[%clk 0:01:09]}  Rhd8 {[%clk 0:02:06]} 16. a3 {[%clk 0:01:01]}  a6 {[%clk 0:02:06]} 17. Bxc6 {[%clk 0:01:00]}  Bxc6 {[%clk 0:02:06]} 18. Rxd8 {[%clk 0:00:58]}  Rxd8 {[%clk 0:02:07]} 19. Rxd8 {[%clk 0:00:58]}  Kxd8 {[%clk 0:02:07]} 20. g3 {[%clk 0:00:53]}  f5 {[%clk 0:01:55]} 21. Nd4 {[%clk 0:00:46]}  Bd7 {[%clk 0:01:46]} 22. b4 {[%clk 0:00:41]}  Bb6 {[%clk 0:01:42]} 23. Nf3 {[%clk 0:00:32]}  Ke7 {[%clk 0:01:35]} 24. Kd2 {[%clk 0:00:30]}  Kf6 {[%clk 0:01:35]} 25. h4 {[%clk 0:00:29]}  Bc6 {[%clk 0:01:25]} 26. Nd4 {[%clk 0:00:25]}  Bg2 {[%clk 0:01:23]} 27. Nce2 {[%clk 0:00:22]}  e5 {[%clk 0:01:21]} 28. Nb3 {[%clk 0:00:22]}  Bf3 {[%clk 0:01:17]} 29. Nc3 {[%clk 0:00:21]}  Bc6 {[%clk 0:01:14]} 30. a4 {[%clk 0:00:20]}  h5 {[%clk 0:01:13]} 31. b5 {[%clk 0:00:20]}  Bf3 {[%clk 0:01:07]} 32. Kd3 {[%clk 0:00:15]}  f4 {[%clk 0:01:06]} 33. gxf4 {[%clk 0:00:13]}  exf4 {[%clk 0:01:05]} 34. Ne4+ {[%clk 0:00:12]}  Ke5 {[%clk 0:00:58]} 35. Ned2 {[%clk 0:00:09]}  Bd5 {[%clk 0:00:56]} 36. exf4+ {[%clk 0:00:08]}  Kxf4 {[%clk 0:00:52]} 37. bxa6 {[%clk 0:00:08]}  bxa6 {[%clk 0:00:51]} 38. Nd4 {[%clk 0:00:07]}  Kg4 {[%clk 0:00:48]} 39. Ne4 {[%clk 0:00:02]}  Bxe4+ {[%clk 0:00:45]} 40. Kxe4 {[%clk 0:00:02]}  Bxd4 {[%clk 0:00:45]} 41. Kxd4 {[%clk 0:00:02]}  Kxh4 {[%clk 0:00:45]} 42. Kc5 {[%clk 0:00:01]}  Kg4 {[%clk 0:00:44]} 43. Kb6 {[%clk 0:00:02]}  h4 {[%clk 0:00:44]} 44. Kxa6 {[%clk 0:00:03]}  h3 {[%clk 0:00:45]} 45. Kb7 {[%clk 0:00:03]}  h2 {[%clk 0:00:45]} 46. a5 {[%clk 0:00:04]}  h1=Q+ {[%clk 0:00:45]} 47. Kb8 {[%clk 0:00:04]}  Qd5 {[%clk 0:00:46]} 48. a6 {[%clk 0:00:04]}  Kf3 {[%clk 0:00:46]} 49. a7 {[%clk 0:00:04]}  Kxf2 {[%clk 0:00:46]} 50. a8=Q {[%clk 0:00:05]}  Qxa8+ {[%clk 0:00:45]} 51. Kxa8 {[%clk 0:00:06]}  f5 {[%clk 0:00:45]} 52. Kb7 {[%clk 0:00:07]}  f4 {[%clk 0:00:46]} 53. Kc6 {[%clk 0:00:08]}  f3 {[%clk 0:00:46]} 54. Kd5 {[%clk 0:00:09]}  Ke3 {[%clk 0:00:47]} 55. Ke5 {[%clk 0:00:09]}  f2 {[%clk 0:00:47]} 56. Kf5 {[%clk 0:00:09]}  f1=Q+ {[%clk 0:00:48]} 57. Ke5 {[%clk 0:00:10]}  Qf2 {[%clk 0:00:49]} 58. Kd5 {[%clk 0:00:10]}  Qf3+ {[%clk 0:00:50]} 59. Ke5 {[%clk 0:00:11]}  Qf4+ {[%clk 0:00:51]} 60. Ke6 {[%clk 0:00:11]}  Ke4 {[%clk 0:00:50]} 61. Kd7 {[%clk 0:00:12]} 0-1


[Site "https://www.chess.com"]

[Event "Titled Tuesday Blitz April 26 Early 2022"]
[White "Sirosh, Ilja"]
[Black "Sarkar, Justin"]
[WhiteFideId "4500458"]
[BlackFideId "2010011"]
[WhiteElo "2241"]
[BlackElo "2038"]
[Result "1-0"]
[Round "07"]
[TimeControl "180+1"]
[Date "2022.04.26"]
[WhiteClock "0:00:16"]
[BlackClock "0:00:02"]

1. e4 {[%clk 0:02:59]}  c5 {[%clk 0:02:39]} 2. Nf3 {[%clk 0:02:59]}  d6 {[%clk 0:02:39]} 3. d4 {[%clk 0:02:59]}  cxd4 {[%clk 0:02:39]} 4. Nxd4 {[%clk 0:03:00]}  Nf6 {[%clk 0:02:40]} 5. Nc3 {[%clk 0:03:01]}  a6 {[%clk 0:02:40]} 6. Bc4 {[%clk 0:03:01]}  b5 {[%clk 0:02:40]} 7. Bd5 {[%clk 0:03:01]}  Nxd5 {[%clk 0:02:23]} 8. exd5 {[%clk 0:03:02]}  Bb7 {[%clk 0:02:17]} 9. O-O {[%clk 0:02:56]}  b4 {[%clk 0:02:00]} 10. Ne4 {[%clk 0:02:53]}  Bxd5 {[%clk 0:01:55]} 11. Re1 {[%clk 0:02:53]}  e6 {[%clk 0:01:47]} 12. Nf5 {[%clk 0:02:42]}  Bxe4 {[%clk 0:01:26]} 13. Rxe4 {[%clk 0:02:43]}  d5 {[%clk 0:01:26]} 14. Bg5 {[%clk 0:02:28]}  Qd7 {[%clk 0:00:44]} 15. Re2 {[%clk 0:01:48]}  Nc6 {[%clk 0:00:39]} 16. Qd3 {[%clk 0:01:47]}  f6 {[%clk 0:00:28]} 17. Bh4 {[%clk 0:01:21]}  Kf7 {[%clk 0:00:27]} 18. Nd4 {[%clk 0:01:11]}  Nxd4 {[%clk 0:00:20]} 19. Qxd4 {[%clk 0:01:12]}  Rc8 {[%clk 0:00:19]} 20. Rae1 {[%clk 0:01:11]}  e5 {[%clk 0:00:16]} 21. Qb6 {[%clk 0:00:55]}  Qc6 {[%clk 0:00:13]} 22. Qe3 {[%clk 0:00:49]}  Bc5 {[%clk 0:00:12]} 23. Qh3 {[%clk 0:00:49]}  Rc7 {[%clk 0:00:08]} 24. Qf5 {[%clk 0:00:47]}  Qe6 {[%clk 0:00:06]} 25. Qh5+ {[%clk 0:00:47]}  g6 {[%clk 0:00:05]} 26. Qh6 {[%clk 0:00:47]}  Qf5 {[%clk 0:00:05]} 27. Qd2 {[%clk 0:00:41]}  Rd8 {[%clk 0:00:03]} 28. h3 {[%clk 0:00:42]}  Rdd7 {[%clk 0:00:03]} 29. g4 {[%clk 0:00:36]}  Qf4 {[%clk 0:00:03]} 30. Qd3 {[%clk 0:00:34]}  e4 {[%clk 0:00:03]} 31. Qxa6 {[%clk 0:00:31]}  Qf3 {[%clk 0:00:03]} 32. Re3 {[%clk 0:00:18]}  Bxe3 {[%clk 0:00:02]} 33. Rxe3 {[%clk 0:00:19]}  Qf4 {[%clk 0:00:02]} 34. Bg3 {[%clk 0:00:18]}  Qg5 {[%clk 0:00:02]} 35. Bxc7 {[%clk 0:00:18]}  Rxc7 {[%clk 0:00:02]} 36. Qd6 {[%clk 0:00:18]}  Rxc2 {[%clk 0:00:02]} 37. Qd7+ {[%clk 0:00:17]}  Kg8 {[%clk 0:00:02]} 38. Qe6+ {[%clk 0:00:16]}  Kg7 {[%clk 0:00:02]} 39. Qe7+ {[%clk 0:00:16]}  Kh6 {[%clk 0:00:02]} 40. Qf8# {[%clk 0:00:16]} 1-0


[Site "https://www.chess.com"]